[Event "Late-Titled-Tuesday-Blitz-January-30-2024"]
[Site "Chess.com"]
[Date "2024.01.30"]
[Round "2"]
[White "sofaceindisguise"]
[Black "Chessdreamer2020"]
[Result "0-1"]
[WhiteElo "2777"]
[BlackElo "2564"]
[TimeControl "180+1"]
[EndTime "14:18:37 PST"]
[Termination "Chessdreamer2020 won by resignation"]

1. d4 {[%clk 0:02:58.9]} 1... d6 {[%clk 0:03:00]} 2. c4 {[%clk 0:02:58.2]} 2...
e5 {[%clk 0:02:59.9]} 3. Nf3 {[%clk 0:02:58.6]} 3... e4 {[%clk 0:02:59.4]} 4.
Nfd2 {[%clk 0:02:57.7]} 4... f5 {[%clk 0:03:00.3]} 5. b4 {[%clk 0:02:54.6]} 5...
Nf6 {[%clk 0:03:00.1]} 6. Nb3 {[%clk 0:02:55]} 6... g6 {[%clk 0:02:59]} 7. Nc3
{[%clk 0:02:55.2]} 7... Bg7 {[%clk 0:02:59.3]} 8. e3 {[%clk 0:02:50]} 8... O-O
{[%clk 0:02:59.3]} 9. Be2 {[%clk 0:02:50.4]} 9... c6 {[%clk 0:02:55.2]} 10. Bb2
{[%clk 0:02:48.8]} 10... d5 {[%clk 0:02:54.8]} 11. c5 {[%clk 0:02:43.9]} 11...
Bh6 {[%clk 0:02:23.1]} 12. g3 {[%clk 0:02:39.9]} 12... Be6 {[%clk 0:02:02]} 13.
Qc2 {[%clk 0:02:37.4]} 13... a5 {[%clk 0:01:45.8]} 14. Nxa5 {[%clk 0:02:35.8]}
14... Qc7 {[%clk 0:01:44.4]} 15. Nb3 {[%clk 0:02:31.2]} 15... b6 {[%clk
0:01:40.1]} 16. O-O-O {[%clk 0:02:27.1]} 16... Na6 {[%clk 0:01:36]} 17. a3
{[%clk 0:02:25.1]} 17... bxc5 {[%clk 0:01:36.1]} 18. dxc5 {[%clk 0:02:06.1]}
18... Nd7 {[%clk 0:01:34]} 19. Nd4 {[%clk 0:01:59.3]} 19... Bf7 {[%clk
0:01:33.9]} 20. h4 {[%clk 0:01:50]} 20... Bg7 {[%clk 0:01:27.1]} 21. h5 {[%clk
0:01:49.6]} 21... g5 {[%clk 0:01:27.4]} 22. h6 {[%clk 0:01:48.8]} 22... Bh8
{[%clk 0:01:25.9]} 23. Bh5 {[%clk 0:01:48]} 23... Ne5 {[%clk 0:01:24.2]} 24.
Bxf7+ {[%clk 0:01:48.3]} 24... Rxf7 {[%clk 0:01:21.4]} 25. Rh5 {[%clk
0:01:47.1]} 25... Qe7 {[%clk 0:01:17.6]} 26. f4 {[%clk 0:01:40.4]} 26... Nd3+
{[%clk 0:01:10.2]} 27. Rxd3 {[%clk 0:01:39.5]} 27... exd3 {[%clk 0:01:11.1]} 28.
Qxd3 {[%clk 0:01:38.4]} 28... gxf4 {[%clk 0:01:04.2]} 29. gxf4 {[%clk
0:01:39.3]} 29... Re8 {[%clk 0:00:54]} 30. Rg5+ {[%clk 0:01:33.1]} 30... Kf8
{[%clk 0:00:53.8]} 31. Nxf5 {[%clk 0:01:24.9]} 31... Qd7 {[%clk 0:00:44.5]} 32.
Nd4 {[%clk 0:01:17.9]} 32... Nc7 {[%clk 0:00:40.8]} 33. Kb1 {[%clk 0:01:13.5]}
33... Ne6 {[%clk 0:00:39.4]} 34. Nxe6+ {[%clk 0:01:10.8]} 34... Qxe6 {[%clk
0:00:38.6]} 35. Rg7 {[%clk 0:00:33]} 35... Bxg7 {[%clk 0:00:34.9]} 36. hxg7+
{[%clk 0:00:32.3]} 36... Rxg7 {[%clk 0:00:35.4]} 37. Ka2 {[%clk 0:00:22.6]}
37... d4+ {[%clk 0:00:34.9]} 38. Ka1 {[%clk 0:00:21.5]} 38... dxc3 {[%clk
0:00:34.4]} 39. Bxc3 {[%clk 0:00:21.9]} 39... Rg1+ {[%clk 0:00:34.3]} 40. Kb2
{[%clk 0:00:22.6]} 40... Rg2+ {[%clk 0:00:30.7]} 41. Bd2 {[%clk 0:00:18.9]}
41... Qd5 {[%clk 0:00:26.4]} 42. Qxd5 {[%clk 0:00:16.9]} 42... cxd5 {[%clk
0:00:27.3]} 43. Kc3 {[%clk 0:00:17.8]} 43... Ra8 {[%clk 0:00:25.8]} 44. Bc1
{[%clk 0:00:17]} 44... Rg1 {[%clk 0:00:20.1]} 45. Bb2 {[%clk 0:00:16.8]} 45...
Re1 {[%clk 0:00:18.8]} 46. Kd3 {[%clk 0:00:15.7]} 46... Rb1 {[%clk 0:00:18]} 47.
Kc2 {[%clk 0:00:16.1]} 47... Re1 {[%clk 0:00:16.1]} 48. Kd2 {[%clk 0:00:15.2]}
48... Rg1 {[%clk 0:00:14.6]} 49. c6 {[%clk 0:00:15.5]} 49... Ke7 {[%clk
0:00:14.3]} 50. b5 {[%clk 0:00:15.5]} 50... Rg2+ {[%clk 0:00:13]} 51. Kc3 {[%clk
0:00:15.6]} 51... Kd6 {[%clk 0:00:12.1]} 52. Kb3 {[%clk 0:00:15.7]} 52... Rxb2+
{[%clk 0:00:11.3]} 53. Kxb2 {[%clk 0:00:16]} 53... h5 {[%clk 0:00:12.2]} 54. Kb3
{[%clk 0:00:14.9]} 54... h4 {[%clk 0:00:12.5]} 55. a4 {[%clk 0:00:15.3]} 55...
h3 {[%clk 0:00:12.7]} 56. Kb4 {[%clk 0:00:16.2]} 56... h2 {[%clk 0:00:13]} 0-1

[Event "Late-Titled-Tuesday-Blitz-January-30-2024"]
[Site "Chess.com"]
[Date "2024.01.30"]
[Round "2"]
[White "sakkikuska"]
[Black "AlexeiShirov"]
[Result "1/2-1/2"]
[WhiteElo "2548"]
[BlackElo "2754"]
[TimeControl "180+1"]
[EndTime "14:18:37 PST"]
[Termination "Game drawn by repetition"]

1. e4 {[%clk 0:02:59.4]} 1... e5 {[%clk 0:02:59.3]} 2. Nf3 {[%clk 0:02:59.7]}
2... Nc6 {[%clk 0:02:59.3]} 3. Bb5 {[%clk 0:03:00.1]} 3... a6 {[%clk 0:02:58.6]}
4. Bxc6 {[%clk 0:02:57.9]} 4... dxc6 {[%clk 0:02:57.7]} 5. Nc3 {[%clk
0:02:53.9]} 5... Qf6 {[%clk 0:02:49.5]} 6. d4 {[%clk 0:02:45.2]} 6... exd4
{[%clk 0:02:48.3]} 7. Qxd4 {[%clk 0:02:46.1]} 7... Qxd4 {[%clk 0:02:42.2]} 8.
Nxd4 {[%clk 0:02:47]} 8... Nf6 {[%clk 0:02:26]} 9. f3 {[%clk 0:02:41.3]} 9...
Bd7 {[%clk 0:02:13.8]} 10. a3 {[%clk 0:02:20.4]} 10... O-O-O {[%clk 0:02:08.4]}
11. Be3 {[%clk 0:02:20.3]} 11... Bd6 {[%clk 0:01:59]} 12. O-O-O {[%clk
0:02:17.2]} 12... Rde8 {[%clk 0:01:56.5]} 13. Nb3 {[%clk 0:02:11.6]} 13... b6
{[%clk 0:01:51.3]} 14. g3 {[%clk 0:02:03.2]} 14... Bh3 {[%clk 0:01:44.5]} 15.
Rhg1 {[%clk 0:01:59.9]} 15... Kb7 {[%clk 0:01:40.2]} 16. Bd4 {[%clk 0:01:51]}
16... h5 {[%clk 0:01:32]} 17. Bxf6 {[%clk 0:01:30]} 17... gxf6 {[%clk 0:01:31]}
18. Nd4 {[%clk 0:01:15.3]} 18... h4 {[%clk 0:01:25.7]} 19. b4 {[%clk 0:00:09.2]}
19... hxg3 {[%clk 0:01:17.4]} 20. hxg3 {[%clk 0:00:10.1]} 20... Bc8 {[%clk
0:01:15.8]} 21. Nf5 {[%clk 0:00:09.3]} 21... Be5 {[%clk 0:01:11.2]} 22. Ne2
{[%clk 0:00:09.2]} 22... Rh2 {[%clk 0:01:03.6]} 23. Rd2 {[%clk 0:00:07.5]} 23...
Bxf5 {[%clk 0:00:47]} 24. exf5 {[%clk 0:00:08.4]} 24... Ba1 {[%clk 0:00:35.7]}
25. Nf4 {[%clk 0:00:05.7]} 25... Rxd2 {[%clk 0:00:33.4]} 26. Kxd2 {[%clk
0:00:06.6]} 26... Bd4 {[%clk 0:00:33.1]} 27. Rh1 {[%clk 0:00:04.4]} 27... Be3+
{[%clk 0:00:29.6]} 28. Kd3 {[%clk 0:00:04.6]} 28... Bxf4 {[%clk 0:00:29.2]} 29.
gxf4 {[%clk 0:00:05.5]} 29... Rd8+ {[%clk 0:00:29.2]} 30. Ke3 {[%clk 0:00:05.8]}
30... Rd5 {[%clk 0:00:20.3]} 31. Rh7 {[%clk 0:00:06]} 31... Rxf5 {[%clk
0:00:19.5]} 32. Rxf7 {[%clk 0:00:06.5]} 32... a5 {[%clk 0:00:18.7]} 33. Ke4
{[%clk 0:00:05.6]} 33... Rh5 {[%clk 0:00:18]} 34. Rxf6 {[%clk 0:00:05.8]} 34...
axb4 {[%clk 0:00:17.4]} 35. axb4 {[%clk 0:00:06]} 35... Rh2 {[%clk 0:00:17.4]}
36. Kd3 {[%clk 0:00:06]} 36... Rf2 {[%clk 0:00:17.4]} 37. Rf8 {[%clk 0:00:04.7]}
37... Rxf3+ {[%clk 0:00:17.4]} 38. Kd4 {[%clk 0:00:05.3]} 38... Rf2 {[%clk
0:00:17.2]} 39. c3 {[%clk 0:00:05.6]} 39... Rd2+ {[%clk 0:00:16.5]} 40. Ke3
{[%clk 0:00:05.9]} 40... Rc2 {[%clk 0:00:15.6]} 41. Kd3 {[%clk 0:00:06.4]} 41...
Rf2 {[%clk 0:00:15.1]} 42. f5 {[%clk 0:00:07]} 42... b5 {[%clk 0:00:13.8]} 43.
f6 {[%clk 0:00:07.2]} 43... c5 {[%clk 0:00:13.8]} 44. bxc5 {[%clk 0:00:07.3]}
44... Kc6 {[%clk 0:00:13.9]} 45. Kd4 {[%clk 0:00:07.2]} 45... Rf4+ {[%clk
0:00:12.3]} 46. Ke3 {[%clk 0:00:07.6]} 46... Rf5 {[%clk 0:00:11.1]} 47. Ke4
{[%clk 0:00:07.4]} 47... Rf1 {[%clk 0:00:08.8]} 48. Kd4 {[%clk 0:00:07.9]} 48...
Rd1+ {[%clk 0:00:08.1]} 49. Ke4 {[%clk 0:00:08.2]} 49... Rf1 {[%clk 0:00:07.6]}
50. Kd4 {[%clk 0:00:08.1]} 50... Rd1+ {[%clk 0:00:07.1]} 51. Ke4 {[%clk
0:00:08.5]} 51... Rf1 {[%clk 0:00:07]} 1/2-1/2

[Event "Late-Titled-Tuesday-Blitz-January-30-2024"]
[Site "Chess.com"]
[Date "2024.01.30"]
[Round "2"]
[White "Felix-Rose"]
[Black "NikolaGry"]
[Result "0-1"]
[WhiteElo "2359"]
[BlackElo "2712"]
[TimeControl "180+1"]
[EndTime "14:18:40 PST"]
[Termination "NikolaGry won by resignation"]

1. e4 {[%clk 0:03:00]} 1... d5 {[%clk 0:02:59.6]} 2. exd5 {[%clk 0:03:00.2]}
2... Nf6 {[%clk 0:03:00.1]} 3. d4 {[%clk 0:03:00.4]} 3... Bg4 {[%clk 0:02:59.8]}
4. Bb5+ {[%clk 0:03:00.3]} 4... Nbd7 {[%clk 0:02:58.9]} 5. f3 {[%clk 0:02:59.9]}
5... Bf5 {[%clk 0:02:58.9]} 6. Nc3 {[%clk 0:02:59.9]} 6... a6 {[%clk 0:02:57.1]}
7. Ba4 {[%clk 0:03:00.1]} 7... b5 {[%clk 0:02:56.8]} 8. Bb3 {[%clk 0:03:00.6]}
8... Nb6 {[%clk 0:02:56.1]} 9. Nge2 {[%clk 0:03:01.3]} 9... Nfxd5 {[%clk
0:02:43.3]} 10. Nxd5 {[%clk 0:03:02.2]} 10... Nxd5 {[%clk 0:02:42.7]} 11. O-O
{[%clk 0:03:02.9]} 11... e6 {[%clk 0:02:40.6]} 12. Ng3 {[%clk 0:03:03.1]} 12...
Bg6 {[%clk 0:02:40.2]} 13. f4 {[%clk 0:03:03.6]} 13... f5 {[%clk 0:02:08.7]} 14.
Re1 {[%clk 0:02:55.1]} 14... Kf7 {[%clk 0:02:07.7]} 15. Qf3 {[%clk 0:02:48.9]}
15... c6 {[%clk 0:02:03.6]} 16. Bd2 {[%clk 0:02:47.5]} 16... Bd6 {[%clk
0:02:00.6]} 17. Re2 {[%clk 0:02:45.4]} 17... Re8 {[%clk 0:01:59.7]} 18. Rae1
{[%clk 0:02:45.4]} 18... Qc7 {[%clk 0:01:58.9]} 19. h4 {[%clk 0:02:35.6]} 19...
h6 {[%clk 0:01:51.8]} 20. h5 {[%clk 0:02:29.6]} 20... Bh7 {[%clk 0:01:51.6]} 21.
c3 {[%clk 0:02:04.7]} 21... Re7 {[%clk 0:01:45]} 22. Nf1 {[%clk 0:02:00.7]}
22... Rae8 {[%clk 0:01:39.2]} 23. g3 {[%clk 0:02:00.6]} 23... Nf6 {[%clk
0:01:26.8]} 24. Ne3 {[%clk 0:01:42.2]} 24... Kf8 {[%clk 0:01:20.4]} 25. Bc1
{[%clk 0:01:36.4]} 25... Bg8 {[%clk 0:01:18.7]} 26. Ng2 {[%clk 0:01:31.6]} 26...
Bf7 {[%clk 0:01:18.1]} 27. Qf2 {[%clk 0:01:19.7]} 27... Nxh5 {[%clk 0:01:08.8]}
28. Nh4 {[%clk 0:01:19.6]} 28... Nf6 {[%clk 0:01:06.8]} 29. Nf3 {[%clk
0:01:14.3]} 29... c5 {[%clk 0:00:57.4]} 30. Ne5 {[%clk 0:01:08.4]} 30... c4
{[%clk 0:00:51.3]} 31. Bc2 {[%clk 0:01:07.8]} 31... Bh5 {[%clk 0:00:50.9]} 32.
Rd2 {[%clk 0:00:59.8]} 32... Kg8 {[%clk 0:00:44.1]} 33. Qh2 {[%clk 0:00:57.9]}
33... Bg4 {[%clk 0:00:39.5]} 34. Qh4 {[%clk 0:00:55.3]} 34... b4 {[%clk
0:00:34.7]} 35. Kf2 {[%clk 0:00:49.1]} 35... Bxe5 {[%clk 0:00:25.5]} 36. Rxe5
{[%clk 0:00:40.5]} 36... Nd5 {[%clk 0:00:21.4]} 37. Ba4 {[%clk 0:00:32]} 37...
bxc3 {[%clk 0:00:18.3]} 38. bxc3 {[%clk 0:00:31.9]} 38... Nxc3 {[%clk
0:00:18.1]} 39. Bxe8 {[%clk 0:00:30.9]} 39... Rxe8 {[%clk 0:00:18.3]} 40. Rc2
{[%clk 0:00:26.7]} 40... Nd5 {[%clk 0:00:15.9]} 41. Qh1 {[%clk 0:00:25.5]} 41...
Qd7 {[%clk 0:00:14.5]} 42. Rxc4 {[%clk 0:00:24.4]} 42... Rc8 {[%clk 0:00:12.6]}
43. Rxc8+ {[%clk 0:00:23.7]} 43... Qxc8 {[%clk 0:00:12.6]} 44. Qe1 {[%clk
0:00:24.3]} 44... Qc2+ {[%clk 0:00:11.6]} 45. Kg1 {[%clk 0:00:24]} 45... Bf3
{[%clk 0:00:10.7]} 46. Qd2 {[%clk 0:00:23.2]} 46... Qb1 {[%clk 0:00:09.6]} 47.
Rxe6 {[%clk 0:00:22.9]} 47... Be4 {[%clk 0:00:09.8]} 48. Rd6 {[%clk 0:00:19.8]}
48... Kh7 {[%clk 0:00:09.6]} 49. Rc6 {[%clk 0:00:18.3]} 49... a5 {[%clk
0:00:09.5]} 50. Rc5 {[%clk 0:00:18.5]} 50... a4 {[%clk 0:00:09.3]} 51. Kf2
{[%clk 0:00:17.2]} 51... Nf6 {[%clk 0:00:09.2]} 52. g4 {[%clk 0:00:16.7]} 52...
Nxg4+ {[%clk 0:00:08.7]} 53. Kg3 {[%clk 0:00:16.9]} 53... Nf6 {[%clk 0:00:08.7]}
54. d5 {[%clk 0:00:17.1]} 54... Bxd5 {[%clk 0:00:08]} 55. Rxd5 {[%clk
0:00:17.6]} 55... Ne4+ {[%clk 0:00:08.1]} 56. Kf3 {[%clk 0:00:16.3]} 56... Nxd2+
{[%clk 0:00:08]} 57. Rxd2 {[%clk 0:00:16.7]} 57... Qxc1 {[%clk 0:00:07.7]} 58.
Ke2 {[%clk 0:00:17.5]} 58... Qc4+ {[%clk 0:00:07.5]} 59. Kf2 {[%clk 0:00:17.9]}
59... Qxf4+ {[%clk 0:00:07.2]} 0-1

[Event "Late-Titled-Tuesday-Blitz-January-30-2024"]
[Site "Chess.com"]
[Date "2024.01.30"]
[Round "2"]
[White "HansOnTwitch"]
[Black "TheCavemanChess"]
[Result "1/2-1/2"]
[WhiteElo "3203"]
[BlackElo "2684"]
[TimeControl "180+1"]
[EndTime "14:18:41 PST"]
[Termination "Game drawn by repetition"]

1. e4 {[%clk 0:03:00.9]} 1... c5 {[%clk 0:02:56.3]} 2. Nf3 {[%clk 0:03:00.7]}
2... d6 {[%clk 0:02:56.6]} 3. Bb5+ {[%clk 0:02:59.3]} 3... Nd7 {[%clk 0:02:57]}
4. O-O {[%clk 0:02:54.3]} 4... a6 {[%clk 0:02:56.1]} 5. Bd3 {[%clk 0:02:54.3]}
5... Ngf6 {[%clk 0:02:55.6]} 6. Re1 {[%clk 0:02:54.7]} 6... b5 {[%clk 0:02:52]}
7. a4 {[%clk 0:02:53.5]} 7... Bb7 {[%clk 0:02:50.7]} 8. axb5 {[%clk 0:02:53.3]}
8... axb5 {[%clk 0:02:50.4]} 9. Rxa8 {[%clk 0:02:53.2]} 9... Bxa8 {[%clk
0:02:50.7]} 10. Bxb5 {[%clk 0:02:52.9]} 10... Nxe4 {[%clk 0:02:50.7]} 11. Nc3
{[%clk 0:02:44.9]} 11... Nxc3 {[%clk 0:01:53.3]} 12. dxc3 {[%clk 0:02:44.6]}
12... e6 {[%clk 0:01:54.2]} 13. Bf4 {[%clk 0:02:33.5]} 13... Qb6 {[%clk
0:01:45.9]} 14. Qa1 {[%clk 0:02:07]} 14... Bxf3 {[%clk 0:01:33.7]} 15. Qa4
{[%clk 0:02:06.1]} 15... Bb7 {[%clk 0:01:21.5]} 16. Bxd7+ {[%clk 0:02:05.9]}
16... Kd8 {[%clk 0:01:21.5]} 17. Bg5+ {[%clk 0:01:52.9]} 17... Be7 {[%clk
0:01:04.7]} 18. Be3 {[%clk 0:01:37.4]} 18... Kc7 {[%clk 0:01:03]} 19. Bb5 {[%clk
0:01:36.6]} 19... Ra8 {[%clk 0:00:57.3]} 20. Qb3 {[%clk 0:01:36.6]} 20... Bc6
{[%clk 0:00:48]} 21. c4 {[%clk 0:01:35.3]} 21... Rb8 {[%clk 0:00:42.6]} 22. Qd3
{[%clk 0:00:39.8]} 22... Bxb5 {[%clk 0:00:40.4]} 23. cxb5 {[%clk 0:00:40.7]}
23... Qxb5 {[%clk 0:00:41.3]} 24. Qxh7 {[%clk 0:00:40.6]} 24... Qxb2 {[%clk
0:00:42]} 25. g3 {[%clk 0:00:38]} 25... Bf6 {[%clk 0:00:33.6]} 26. Bf4 {[%clk
0:00:36.4]} 26... e5 {[%clk 0:00:20.6]} 27. Be3 {[%clk 0:00:35.7]} 27... Qa2
{[%clk 0:00:18.5]} 28. Rd1 {[%clk 0:00:34]} 28... Rb1 {[%clk 0:00:18.2]} 29. Qd3
{[%clk 0:00:32.3]} 29... Rxd1+ {[%clk 0:00:17.4]} 30. Qxd1 {[%clk 0:00:33.2]}
30... Qc4 {[%clk 0:00:17.8]} 31. Qd2 {[%clk 0:00:26.9]} 31... Kd7 {[%clk
0:00:18]} 32. Qd1 {[%clk 0:00:23.4]} 32... Ke6 {[%clk 0:00:18.4]} 33. h4 {[%clk
0:00:22.8]} 33... d5 {[%clk 0:00:18.7]} 34. h5 {[%clk 0:00:23]} 34... d4 {[%clk
0:00:19]} 35. Bd2 {[%clk 0:00:20.9]} 35... Ke7 {[%clk 0:00:19]} 36. Qb1 {[%clk
0:00:19.7]} 36... Qd5 {[%clk 0:00:18.5]} 37. Qb6 {[%clk 0:00:19.7]} 37... e4
{[%clk 0:00:18.4]} 38. Bf4 {[%clk 0:00:19.2]} 38... Be5 {[%clk 0:00:16.7]} 39.
Bg5+ {[%clk 0:00:17.8]} 39... f6 {[%clk 0:00:16.6]} 40. Qa7+ {[%clk 0:00:17.2]}
40... Kf8 {[%clk 0:00:17.2]} 41. h6 {[%clk 0:00:15.1]} 41... fxg5 {[%clk
0:00:15.8]} 42. h7 {[%clk 0:00:13.8]} 42... g6 {[%clk 0:00:16.5]} 43. Kf1 {[%clk
0:00:08.4]} 43... Qc4+ {[%clk 0:00:15.7]} 44. Kg1 {[%clk 0:00:08.5]} 44... Qf7
{[%clk 0:00:15]} 45. Qxc5+ {[%clk 0:00:08.7]} 45... Qe7 {[%clk 0:00:12.2]} 46.
Qc8+ {[%clk 0:00:09.3]} 46... Qe8 {[%clk 0:00:10.7]} 47. Qb7 {[%clk 0:00:09.2]}
47... Qe7 {[%clk 0:00:10.3]} 48. Qxe4 {[%clk 0:00:07.8]} 48... Kg7 {[%clk
0:00:10.7]} 49. h8=Q+ {[%clk 0:00:04.7]} 49... Kxh8 {[%clk 0:00:10.9]} 50. Qxg6
{[%clk 0:00:05.6]} 50... Bg7 {[%clk 0:00:10.4]} 51. Qh5+ {[%clk 0:00:05.6]}
51... Kg8 {[%clk 0:00:11]} 52. Qg6 {[%clk 0:00:06.4]} 52... Qe1+ {[%clk
0:00:11.1]} 53. Kg2 {[%clk 0:00:07]} 53... Qe7 {[%clk 0:00:11.8]} 54. Qf5 {[%clk
0:00:07.1]} 54... Qb7+ {[%clk 0:00:12.2]} 55. Kg1 {[%clk 0:00:07.2]} 55... Qe7
{[%clk 0:00:12.6]} 56. Qd5+ {[%clk 0:00:06.9]} 56... Kf8 {[%clk 0:00:11.9]} 57.
Qf5+ {[%clk 0:00:07.3]} 57... Ke8 {[%clk 0:00:12.3]} 58. Qc8+ {[%clk 0:00:07.2]}
58... Kf7 {[%clk 0:00:12.9]} 59. Qf5+ {[%clk 0:00:07.9]} 59... Bf6 {[%clk
0:00:13.6]} 60. Qh7+ {[%clk 0:00:08]} 60... Ke6 {[%clk 0:00:14.3]} 61. Qg8+
{[%clk 0:00:08]} 61... Kd6 {[%clk 0:00:14.6]} 62. Qc4 {[%clk 0:00:08]} 62...
Qe1+ {[%clk 0:00:14]} 63. Kg2 {[%clk 0:00:08.7]} 63... Qe4+ {[%clk 0:00:14.7]}
64. Kg1 {[%clk 0:00:09]} 64... Ke5 {[%clk 0:00:14]} 65. Qc5+ {[%clk 0:00:08.2]}
65... Ke6 {[%clk 0:00:14.5]} 66. Qc4+ {[%clk 0:00:08.9]} 66... Kf5 {[%clk
0:00:14.9]} 67. Qc8+ {[%clk 0:00:09]} 67... Kg6 {[%clk 0:00:15.2]} 68. Qg8+
{[%clk 0:00:09.5]} 68... Kf5 {[%clk 0:00:14.5]} 69. Qh7+ {[%clk 0:00:09.1]}
69... Ke5 {[%clk 0:00:15.2]} 70. Qc7+ {[%clk 0:00:09.5]} 70... Kf5 {[%clk
0:00:15.7]} 71. Qh7+ {[%clk 0:00:09.7]} 71... Ke5 {[%clk 0:00:16.3]} 72. Qc7+
{[%clk 0:00:10.1]} 72... Kf5 {[%clk 0:00:16.9]} 73. Qh7+ {[%clk 0:00:10.1]}
1/2-1/2

[Event "Late-Titled-Tuesday-Blitz-January-30-2024"]
[Site "Chess.com"]
[Date "2024.01.30"]
[Round "2"]
[White "gmtalentoso"]
[Black "ChessBrainiacOnTwitch"]
[Result "1/2-1/2"]
[WhiteElo "2418"]
[BlackElo "2800"]
[TimeControl "180+1"]
[EndTime "14:18:41 PST"]
[Termination "Game drawn by repetition"]

1. e4 {[%clk 0:03:00.9]} 1... c5 {[%clk 0:02:58.2]} 2. Nc3 {[%clk 0:02:59.4]}
2... d6 {[%clk 0:02:54.8]} 3. f4 {[%clk 0:02:56.9]} 3... g6 {[%clk 0:02:54.9]}
4. Nf3 {[%clk 0:02:57.2]} 4... Bg7 {[%clk 0:02:55.4]} 5. Bc4 {[%clk 0:02:57.6]}
5... Nc6 {[%clk 0:02:55.1]} 6. O-O {[%clk 0:02:57.2]} 6... a6 {[%clk 0:02:55.7]}
7. d3 {[%clk 0:02:54.7]} 7... b5 {[%clk 0:02:55.1]} 8. Bd5 {[%clk 0:02:51.9]}
8... Bb7 {[%clk 0:02:51.4]} 9. f5 {[%clk 0:02:35]} 9... Nf6 {[%clk 0:02:50.5]}
10. Qe1 {[%clk 0:02:08]} 10... b4 {[%clk 0:02:47.3]} 11. Ne2 {[%clk 0:02:02.9]}
11... Nxd5 {[%clk 0:02:47.3]} 12. exd5 {[%clk 0:02:00.4]} 12... Ne5 {[%clk
0:02:21.5]} 13. Nxe5 {[%clk 0:01:55.9]} 13... dxe5 {[%clk 0:02:22.4]} 14. Ng3
{[%clk 0:01:43.6]} 14... Qxd5 {[%clk 0:02:16.1]} 15. Ne4 {[%clk 0:01:42.2]}
15... c4 {[%clk 0:01:07.3]} 16. Qxb4 {[%clk 0:01:34.6]} 16... cxd3 {[%clk
0:01:04.9]} 17. cxd3 {[%clk 0:01:31.2]} 17... O-O {[%clk 0:01:04.9]} 18. Bg5
{[%clk 0:00:49.1]} 18... f6 {[%clk 0:00:58.8]} 19. Bh4 {[%clk 0:00:42.7]} 19...
Rfe8 {[%clk 0:00:53.3]} 20. Rad1 {[%clk 0:00:42.4]} 20... Rad8 {[%clk
0:00:44.3]} 21. Kh1 {[%clk 0:00:39.7]} 21... a5 {[%clk 0:00:40.6]} 22. Qb3
{[%clk 0:00:37]} 22... Qxb3 {[%clk 0:00:40.3]} 23. axb3 {[%clk 0:00:36.6]} 23...
g5 {[%clk 0:00:41.2]} 24. Bf2 {[%clk 0:00:35.6]} 24... Bd5 {[%clk 0:00:41.3]}
25. Nc5 {[%clk 0:00:30.9]} 25... Rb8 {[%clk 0:00:38]} 26. Ra1 {[%clk 0:00:29.8]}
26... Rb5 {[%clk 0:00:38.1]} 27. Ra3 {[%clk 0:00:25.9]} 27... Rc8 {[%clk
0:00:38.2]} 28. Rfa1 {[%clk 0:00:24.4]} 28... Rcxc5 {[%clk 0:00:21.7]} 29. Bxc5
{[%clk 0:00:23.7]} 29... Rxc5 {[%clk 0:00:22.6]} 30. Rxa5 {[%clk 0:00:24.1]}
30... Rxa5 {[%clk 0:00:23.2]} 31. Rxa5 {[%clk 0:00:24]} 31... Bxb3 {[%clk
0:00:24.1]} 32. Rb5 {[%clk 0:00:22.6]} 32... Bc2 {[%clk 0:00:23.2]} 33. Rb7
{[%clk 0:00:21.3]} 33... Bxd3 {[%clk 0:00:19.7]} 34. b4 {[%clk 0:00:20.4]} 34...
e4 {[%clk 0:00:18.4]} 35. Kg1 {[%clk 0:00:18]} 35... e3 {[%clk 0:00:17.4]} 36.
b5 {[%clk 0:00:18.3]} 36... Bf8 {[%clk 0:00:15.4]} 37. Rb8 {[%clk 0:00:18.1]}
37... Kf7 {[%clk 0:00:15.6]} 38. b6 {[%clk 0:00:18.7]} 38... Ba6 {[%clk
0:00:12.5]} 39. b7 {[%clk 0:00:18.3]} 39... Bh6 {[%clk 0:00:13]} 40. Rf8+ {[%clk
0:00:17]} 40... Bxf8 {[%clk 0:00:13.2]} 41. b8=Q {[%clk 0:00:17.9]} 41... Bc4
{[%clk 0:00:10]} 42. Qb4 {[%clk 0:00:17.7]} 42... Bd5 {[%clk 0:00:07]} 43. Qd4
{[%clk 0:00:16.1]} 43... e6 {[%clk 0:00:05.4]} 44. fxe6+ {[%clk 0:00:15.4]}
44... Bxe6 {[%clk 0:00:06.3]} 45. Qxe3 {[%clk 0:00:16]} 45... h5 {[%clk
0:00:06.5]} 46. Qa7+ {[%clk 0:00:16]} 46... Be7 {[%clk 0:00:07]} 47. h3 {[%clk
0:00:16]} 47... h4 {[%clk 0:00:07.6]} 48. Kf2 {[%clk 0:00:15.7]} 48... Bd5
{[%clk 0:00:08.1]} 49. Qd4 {[%clk 0:00:15.1]} 49... Ke6 {[%clk 0:00:08.6]} 50.
Qb6+ {[%clk 0:00:12.9]} 50... Bd6 {[%clk 0:00:09.1]} 51. Qa6 {[%clk 0:00:12.4]}
51... Ke5 {[%clk 0:00:09.4]} 52. Qe2+ {[%clk 0:00:12.3]} 52... Kf5 {[%clk
0:00:08.9]} 53. Qd3+ {[%clk 0:00:12.2]} 53... Ke6 {[%clk 0:00:09.3]} 54. Qe2+
{[%clk 0:00:12.1]} 54... Kd7 {[%clk 0:00:09.7]} 55. Qd3 {[%clk 0:00:10.2]} 55...
Be6 {[%clk 0:00:09.5]} 56. Qb5+ {[%clk 0:00:09.9]} 56... Ke7 {[%clk 0:00:09.9]}
57. Qb7+ {[%clk 0:00:10]} 57... Bd7 {[%clk 0:00:10.5]} 58. Qe4+ {[%clk
0:00:10.4]} 58... Kf7 {[%clk 0:00:10.3]} 59. Qd5+ {[%clk 0:00:10.9]} 59... Ke7
{[%clk 0:00:10.7]} 60. Qe4+ {[%clk 0:00:11]} 60... Be6 {[%clk 0:00:11.3]} 61.
Qb7+ {[%clk 0:00:11.1]} 61... Bd7 {[%clk 0:00:10.7]} 62. Qe4+ {[%clk 0:00:11.1]}
1/2-1/2